bitfinex/quotes_ETHUSD_20250630
["timestamp","ask_amount","ask_price","bid_price","bid_amount"]
[1751311831126,0.02,2510.1,2509.8,4.46901115]
[1751311831320,0.02,2510.1,2509.8,0.4847]
[1751311831557,0.81873938,2510.1,2509.4,0.4847]
[1751311831857,0.02,2510.1,2509.4,4.4697115]
[1751311832059,0.02,2510.1,2510.0,3.98406374]
[1751311833229,0.02,2510.1,2510.0,14.46876374]
[1751311833543,2.184,2511.1,2510.8,3.98273735]
[1751311833733,2.184,2511.1,2510.7,4.46758682]
[1751311833931,3.98266864,2510.9,2510.4,4.46798286]
[1751311834328,2.4024,2511.1,2510.4,0.4847]
[1751311834854,3.982726,2510.9,2510.4,3.98339764]
[1751311835226,3.982726,2510.9,2510.4,3.98339483]
[1751311835423,2.4024,2511.1,2510.2,14.46831495]
[1751311835649,3.9829372,2510.8,2510.3,3.98357192]
[1751311836067,3.98269558,2510.9,2510.4,3.98329603]
[1751311836661,3.98282257,2510.8,2510.3,3.98351358]
[1751311837243,3.98303413,2510.7,2510.2,14.46838532]
[1751311837444,0.63845818,2511.0,2510.3,3.98356981]
[1751311837745,0.63845818,2511.0,2510.6,0.1984]
[1751311837746,3.9827097,2510.9,2510.6,0.1984]
[1751311838047,3.98280822,2510.8,2510.6,0.1984]
[1751311838253,2.4024,2511.1,2510.6,0.1984]
[1751311838254,3.98295296,2510.7,2510.6,0.1984]
[1751311840395,3.98254228,2511.0,2510.6,0.1984]
[1751311840590,2.4024,2511.1,2510.6,0.1984]
[1751311840781,3.98294209,2510.8,2510.6,0.1984]
[1751311840982,3.98295296,2510.7,2510.6,0.1984]
[1751311841884,1.34399643,2511.0,2510.6,0.1984]
[1751311842084,6.38478643,2511.1,2510.7,3.98294929]
[1751311842289,6.38478643,2511.1,2510.9,0.1984]
[1751311842596,6.38478643,2511.1,2510.7,3.98294929]
[1751311842597,0.02,2511.2,2510.7,10.86376923]
[1751311842785,0.02,2511.2,2511.1,4.1807185]
[1751311843666,0.02,2511.2,2511.1,15.04448773]
[1751311844375,0.02,2511.2,2511.1,15.52918773]
[1751311844700,0.02,2511.2,2511.1,25.52918773]
[1751311844995,0.02,2511.2,2511.1,29.16395064]
[1751311845201,0.02,2511.2,2511.1,29.71395064]
[1751311846102,2.184,2512.1,2511.3,0.4847]
[1751311846278,4.768813,2512.5,2511.3,0.4847]
[1751311846279,3.98035126,2512.4,2511.7,10.86376923]
[1751311846483,3.98033662,2512.4,2512.0,0.1984]
[1751311846679,9.569,2512.7,2511.9,0.4847]
[1751311846895,2.184,2512.9,2512.1,10.86376923]
[1751311847204,0.37000984,2512.8,2512.6,0.1984]
[1751311847408,0.37000984,2512.8,2512.2,6.834]
[1751311847409,2.184,2512.9,2512.5,3.98002883]
[1751311847609,0.7986,2513.2,2512.7,0.1984]
[1751311847779,3.97962432,2512.8,2512.7,0.1984]
[1751311847975,5.14525365,2512.8,2512.7,0.1984]
[1751311848609,5.14517551,2512.8,2512.7,0.1984]
[1751311849179,5.14517551,2512.8,2512.1,6.834]
[1751311849378,3.9800995,2512.5,2512.4,0.1984]
[1751311849623,4.34973955,2512.5,2512.4,0.1984]
[1751311849792,3.98043601,2512.3,2512.2,0.1984]
[1751311850497,3.9802592,2512.4,2511.6,0.4847]
[1751311850498,3.98098048,2512.0,2511.6,0.4847]
[1751311850701,3.98098048,2512.0,2511.6,7.3177]
[1751311850906,3.98089171,2512.0,2511.9,0.1984]
[1751311851088,3.98057479,2512.2,2511.9,0.1984]
[1751311851294,3.98089171,2512.0,2511.9,0.1984]
[1751311851875,4.37887193,2512.1,2511.9,0.1984]
[1751311852424,0.39805748,2512.1,2511.9,0.1984]
[1751311852777,3.98033662,2512.4,2511.9,4.17944865]
[1751311853286,3.98033662,2512.4,2512.2,0.1984]
[1751311853486,3.98041635,2512.3,2512.2,0.1984]
[1751311853800,3.98034865,2512.4,2512.2,0.1984]
[1751311854406,3.98041635,2512.3,2512.2,0.1984]
[1751311854802,4.93707993,2512.3,2512.2,0.1984]
[1751311855529,0.95666358,2512.3,2512.2,0.1984]
[1751311856140,3.9802759,2512.4,2512.2,0.1984]
[1751311856298,0.83297078,2512.5,2512.2,0.1984]
[1751311856299,4.81315765,2512.5,2512.2,0.1984]
[1751311856504,4.81315765,2512.5,2512.3,0.1984]
[1751311857499,3.98025792,2512.4,2512.3,0.1984]
[1751311858232,3.98030847,2512.4,2512.2,0.1984]
[1751311858434,0.48132793,2512.3,2512.2,0.1984]
[1751311858619,4.46188542,2512.3,2512.2,0.1984]
[1751311859026,3.98071149,2512.2,2511.9,0.1984]
[1751311859225,0.67972793,2512.3,2511.8,3.98110662]
[1751311859226,0.48132793,2512.3,2511.8,3.98110662]
[1751311859432,3.98060947,2512.2,2512.0,0.1984]
[1751311860124,1.03137078,2512.5,2512.0,0.1984]
[1751311860329,1.03137078,2512.5,2511.9,0.1984]
[1751311860330,3.98081071,2512.1,2511.9,0.1984]
[1751311860670,0.1984,2512.3,2511.9,0.1984]
[1751311860807,3.98049997,2512.3,2512.0,0.1984]
[1751311861308,3.98066228,2512.2,2512.0,0.1984]
[1751311861510,3.98050027,2512.3,2512.0,0.1984]
[1751311861717,0.79607582,2512.2,2512.0,0.1984]
[1751311862667,0.9987,2512.5,2512.1,3.98073325]
[1751311862962,0.1984,2512.5,2512.1,3.98073325]
[1751311863172,2.182,2512.8,2512.4,0.1984]
[1751311863321,2.182,2512.8,2512.7,4.1781827]
[1751311863521,0.02,2512.9,2512.7,0.1984]
[1751311863932,0.02,2512.9,2512.8,3.97962432]
[1751311864823,0.02,2512.9,2512.8,16.29636055]
[1751311865026,0.01,2513.2,2512.8,1.76673623]
[1751311865219,0.01,2513.2,2513.1,3.97914925]
[1751311865626,0.01,2513.2,2513.0,3.97923113]
[1751311865822,0.01,2513.2,2513.1,3.97914925]
[1751311866049,0.01,2513.2,2512.6,6.16189926]
[1751311866050,3.97924602,2513.1,2512.5,0.4847]
[1751311866325,3.97924602,2513.1,2512.6,10.80785304]
[1751311866531,4.42430906,2513.1,2512.6,10.80785304]
[1751311866740,4.42430906,2513.1,2512.5,4.46474241]
[1751311866741,3.9793444,2513.0,2512.5,4.46474241]
[1751311866964,0.7525,2513.0,2512.2,0.4847]
[1751311867167,3.97971621,2512.8,2512.3,10.80834381]
[1751311867461,3.97971621,2512.8,2512.4,6.828]
[1751311867462,3.97987539,2512.7,2512.4,6.828]
[1751311867627,3.97994724,2512.6,2512.4,6.828]
[1751311867826,3.97985066,2512.7,2512.4,6.828]
[1751311868049,3.97985066,2512.7,2512.2,14.46519318]
[1751311868361,3.97986205,2512.7,2512.3,6.827]
[1751311868877,3.97994109,2512.6,2511.9,0.4847]
[1751311869163,3.97994109,2512.6,2511.6,0.4847]
[1751311869164,3.97996691,2512.6,2511.6,0.4847]
[1751311869364,3.9807379,2512.1,2511.7,10.0]
[1751311869569,3.9807379,2512.1,2511.6,11.29315748]
[1751311869774,3.9807379,2512.1,2511.7,6.827]
[1751311869937,3.98047389,2512.3,2511.8,3.98116676]
[1751311870266,10.0,2512.5,2511.8,1.52743249]
[1751311870467,13.98018637,2512.5,2511.9,3.98098951]
[1751311870672,3.98025792,2512.4,2511.9,3.98098951]
[1751311871280,3.9802793,2512.4,2511.9,3.98095951]
[1751311871482,10.0,2512.5,2512.0,3.98081345]
[1751311871483,13.9801357,2512.5,2512.0,3.98081345]
[1751311871850,7.84355526,2512.7,2512.2,3.98051008]
[1751311872087,3.86365379,2512.7,2511.9,10.86376923]
[1751311872243,3.97995113,2512.6,2512.1,3.98065665]
[1751311872754,3.06505379,2512.7,2512.1,6.826]
[1751311872952,3.98017011,2512.5,2512.1,6.826]
[1751311873167,3.98001304,2512.6,2512.1,10.80672067]
[1751311873974,3.06505379,2512.7,2512.1,10.80668202]
[1751311874175,7.04493696,2512.7,2512.1,6.826]
[1751311874374,3.98003688,2512.6,2512.1,10.80667475]
[1751311874780,3.98003688,2512.6,2512.2,3.98056418]
[1751311874979,3.98003688,2512.6,2512.5,0.1984]
[1751311875689,15.08251544,2512.6,2512.5,0.1984]
[1751311875865,3.9807026,2512.2,2512.0,0.1984]
[1751311876063,3.98073325,2512.1,2512.0,0.1984]
[1751311876874,3.98065296,2512.2,2512.0,0.1984]
[1751311877097,3.98065574,2512.2,2512.0,0.1984]
[1751311877591,3.98025792,2512.4,2512.0,0.1984]
[1751311877791,6.67162729,2512.4,2512.0,0.1984]
[1751311878095,3.98043008,2512.3,2512.0,0.1984]
[1751311879099,6.67168687,2512.4,2512.0,0.1984]
[1751311879258,6.67168687,2512.4,2512.0,4.17928913]
[1751311879461,2.69136937,2512.4,2512.0,0.1984]
[1751311879775,3.98065918,2512.2,2512.0,0.1984]
[1751311880100,4.95196282,2512.3,2512.0,0.1984]
[1751311880263,15.9098954,2512.6,2512.1,3.98062722]
[1751311880468,4.80741684,2512.6,2512.2,3.98056321]
[1751311880761,2.179,2512.7,2512.4,0.1984]
[1751311880957,2.179,2512.7,2512.5,0.1984]
[1751311882064,0.8074,2512.6,2511.5,1.64978729]
[1751311882268,0.8074,2512.6,2512.1,0.1984]
[1751311882269,3.98067016,2512.2,2512.1,0.1984]
[1751311882783,3.980325,2512.4,2512.1,0.1984]
[1751311883175,3.98043004,2512.3,2512.1,0.1984]
[1751311883473,1.17954,2512.5,2512.1,0.1984]
[1751311883674,11.17954,2512.5,2512.1,3.98064509]
[1751311883880,3.98025792,2512.4,2512.3,0.1984]
[1751311884085,6.1730486,2512.4,2512.3,0.1984]
[1751311884797,6.1730486,2512.4,2511.5,0.4847]
[1751311884798,2.19279068,2512.4,2512.1,0.1984]
[1751311885106,3.98071046,2512.2,2512.1,0.1984]
[1751311885286,3.98042486,2512.3,2512.1,0.1984]
[1751311885489,3.98042645,2512.3,2512.1,0.1984]
[1751311885665,3.98057479,2512.2,2512.1,0.1984]
[1751311885866,5.79317947,2512.3,2512.1,0.1984]
[1751311886085,3.98050491,2512.3,2512.1,0.1984]
[1751311886397,3.98049769,2512.3,2512.1,0.1984]
[1751311886900,3.97823981,2512.2,2512.1,0.1984]
[1751311889601,6.17311746,2512.4,2512.1,0.1984]
[1751311889801,3.98057479,2512.2,2512.1,0.1984]
[1751311890799,4.35328587,2512.2,2512.1,0.1984]
[1751311891191,3.98051263,2512.3,2512.1,0.1984]
[1751311891604,3.98057479,2512.2,2512.1,0.1984]
[1751311891803,6.17311224,2512.4,2512.1,0.1984]
[1751311891804,2.19279068,2512.4,2512.1,0.1984]
[1751311891972,0.37268873,2512.3,2512.1,0.1984]
[1751311893212,0.37268873,2512.3,2512.1,4.66367917]
[1751311893405,0.37268873,2512.4,2512.2,0.1984]
[1751311893710,3.9802833,2512.4,2512.2,0.1984]
[1751311894109,3.98033718,2512.4,2512.2,0.1984]
[1751311894710,13.98017001,2512.5,2512.2,0.1984]
[1751311895009,0.37265965,2512.4,2512.2,0.1984]
[1751311895210,10.0,2512.6,2512.2,0.1984]
[1751311895399,0.37277065,2512.5,2512.2,0.1984]
[1751311895598,0.37277065,2512.4,2512.2,3.98048202]
[1751311895901,4.81817236,2512.9,2512.3,4.17866667]
[1751311895902,0.37277065,2512.8,2512.3,4.17866667]
[1751311896084,0.37281836,2512.7,2512.3,4.17872156]
[1751311896289,4.35253927,2512.8,2512.6,0.1984]
[1751311896512,0.37281718,2512.7,2512.6,0.1984]
[1751311899888,0.01,2512.9,2512.6,4.17825919]
[1751311900091,0.37275546,2512.8,2512.6,0.1984]
[1751311900289,0.01,2512.9,2512.6,0.1984]
[1751311900701,0.01,2512.9,2512.5,3.98005935]
[1751311900890,0.01,2512.9,2512.7,3.97967596]
[1751311901213,0.01,2512.9,2512.8,4.17802432]
[1751311902391,0.01,2512.9,2512.8,0.1984]
[1751311902918,0.01,2512.9,2512.6,0.1984]
[1751311903135,3.97963676,2512.8,2512.6,0.1984]
[1751311903423,0.01,2512.9,2512.6,0.1984]
[1751311904121,0.01,2512.9,2512.7,3.97971303]
[1751311904286,0.01,2512.9,2512.6,3.97985459]
[1751311904481,0.01,2512.9,2512.8,0.1984]
[1751311906026,0.01,2512.9,2512.1,11.64978729]
[1751311906224,0.7867,2512.8,2512.1,3.89054755]
[1751311906395,3.97987166,2512.7,2512.3,0.1984]
[1751311908022,3.98034617,2512.4,2512.2,0.1984]
[1751311908230,3.97996804,2512.6,2511.8,1.64978729]
[1751311908517,3.98052811,2512.3,2512.0,0.1984]
[1751311908823,3.98048436,2512.3,2512.0,0.1984]
[1751311909019,4.17860556,2512.5,2512.0,0.1984]
[1751311909238,0.63526056,2512.4,2512.0,0.1984]
[1751311909393,4.61558036,2512.4,2512.0,0.1984]
[1751311909592,3.98042111,2512.3,2512.0,0.1984]
[1751311909993,0.63526056,2512.4,2512.0,0.1984]
[1751311910322,2.174,2512.6,2512.1,3.98071717]
[1751311910523,2.174,2512.6,2512.3,4.17870086]
[1751311911137,2.174,2512.6,2512.3,0.1984]
[1751311911323,2.174,2512.6,2512.3,4.17879517]
[1751311912317,2.174,2512.6,2512.4,3.98020808]
[1751311912816,2.174,2512.6,2512.4,3.98015807]
[1751311913629,2.174,2512.6,2512.5,3.9800995]
[1751311913818,0.01,2512.9,2512.5,4.17848234]
[1751311914026,0.01,2512.9,2512.6,3.97987533]
[1751311914937,0.01,2512.9,2512.7,3.97969285]
[1751311915143,0.01,2512.9,2512.6,4.46451598]
[1751311915298,0.01,2512.9,2512.8,0.1984]
[1751311915637,4.79062905,2512.8,2512.5,0.1984]
[1751311915808,4.79059487,2512.8,2512.5,0.1984]
[1751311916129,3.97987544,2512.7,2512.5,0.1984]
[1751311916904,4.87776247,2512.7,2512.5,0.1984]
[1751311917403,4.87769451,2512.7,2512.5,0.1984]
[1751311917933,3.98003556,2512.6,2512.0,4.46552681]
[1751311918103,4.17843556,2512.6,2512.2,0.1984]
[1751311918433,3.98011455,2512.5,2512.2,0.1984]
[1751311918729,3.98033002,2512.4,2512.0,0.1984]
[1751311919105,3.98063848,2512.2,2512.0,0.1984]
[1751311919431,3.98090597,2512.0,2511.5,1.16508729]
[1751311919598,4.17920013,2512.1,2511.7,0.00865839]
[1751311919805,4.17920013,2512.1,2511.6,0.20705805]
[1751311920115,4.17920013,2512.1,2511.7,3.98134326]
[1751311920116,0.1984,2512.1,2511.7,3.98134326]
[1751311920848,0.1984,2512.1,2511.6,4.18850048]
[1751311920997,0.7628,2512.4,2512.0,3.98088777]
[1751311921195,10.1984,2512.6,2512.1,0.1984]
[1751311921432,14.17842532,2512.6,2512.1,0.1984]
[1751311921627,10.1984,2512.6,2512.1,4.17909783]
[1751311921906,16.35236185,2512.6,2512.1,0.1984]
[1751311922106,12.9909829,2512.6,2512.2,3.98053935]
[1751311922402,12.3724,2512.6,2512.1,4.17906738]
[1751311923248,2.3724,2512.6,2512.2,3.98056925]
[1751311923716,2.3724,2512.6,2512.1,4.17912462]
[1751311924026,2.3724,2512.6,2512.2,3.98057479]
[1751311924232,0.99672,2512.5,2512.1,4.17912167]
[1751311924435,2.3724,2512.6,2512.1,0.1984]
[1751311924623,6.35235398,2512.6,2512.1,0.1984]
[1751311924819,3.98010433,2512.5,2512.1,0.1984]
[1751311925234,3.98048002,2512.3,2511.8,3.98119865]
[1751311925435,3.98057434,2512.3,2512.0,0.1984]
[1751311925744,2.174,2512.6,2512.0,0.1984]
[1751311925745,2.3724,2512.6,2512.2,0.1984]
[1751311925931,3.98011323,2512.5,2512.2,0.1984]
[1751311926136,7.3489446,2512.6,2512.2,0.1984]
[1751311926501,3.98017391,2512.5,2512.0,4.46550146]
[1751311926705,7.15055003,2512.6,2512.1,3.98067923]
[1751311926918,3.17052,2512.6,2512.1,3.98067923]
[1751311927116,0.99652,2512.6,2512.0,0.4847]
[1751311927317,2.9568,2512.7,2512.3,3.98031988]
[1751311928338,2.9568,2512.7,2512.0,0.4847]
[1751311928634,1.3873,2512.6,2511.6,1.16508729]
[1751311928845,3.98066042,2512.2,2511.7,0.00865839]
[1751311929007,3.98066042,2512.2,2511.7,3.99000038]
[1751311929402,3.98095744,2512.0,2511.7,0.00865805]
[1751311929613,0.7897,2512.0,2511.6,3.98145778]
[1751311930132,4.77059672,2512.0,2511.7,0.00865839]
[1751311930330,4.77059672,2512.0,2511.5,0.00865805]
[1751311930331,3.98105417,2511.9,2511.5,0.00865805]
[1751311930629,0.7897,2512.0,2511.5,0.00865805]
[1751311930833,0.29637,2511.9,2511.5,0.00865805]
[1751311931035,0.7897,2512.0,2511.5,3.98159268]
[1751311931233,0.7897,2512.0,2511.4,3.98176345]
[1751311931234,3.98105412,2511.9,2511.4,3.98176345]
[1751311931458,3.98105412,2511.9,2511.4,3.98174062]
[1751311932430,3.98121119,2511.8,2511.3,3.98195427]
[1751311932636,3.98121119,2511.8,2511.3,5.58403535]
[1751311932961,4.77066511,2512.0,2511.4,3.98183726]
[1751311933455,0.7897,2512.0,2511.5,3.98160097]
[1751311933621,0.7897,2512.0,2511.6,3.98151668]
[1751311934539,0.7897,2512.0,2511.6,3.98151952]
[1751311934744,8.983,2512.1,2511.8,3.98109919]
[1751311934941,0.8234,2512.3,2511.6,0.8447969]
[1751311935252,2.174,2512.4,2511.6,0.8447969]
[1751311935253,2.174,2512.4,2512.0,3.98078388]
[1751311935417,2.174,2512.4,2511.9,0.4847]
[1751311935621,2.174,2512.4,2512.3,3.98041635]
[1751311935952,2.174,2512.4,2512.1,3.98064004]
[1751311936150,2.174,2512.4,2512.2,3.98056803]
[1751311936351,2.174,2512.4,2511.9,0.4847]
[1751311936552,2.174,2512.4,2512.2,0.1984]
[1751311938554,2.174,2512.4,2512.1,0.1984]
[1751311939456,2.174,2512.4,2512.1,4.17912239]
[1751311939755,2.174,2512.4,2512.1,4.17906901]
[1751311940258,2.174,2512.4,2512.1,4.18906901]
[1751311940559,2.174,2512.4,2512.1,0.2084]
[1751311941324,2.174,2512.4,2512.1,4.18912894]
[1751311941524,2.174,2512.4,2512.1,0.2084]
[1751311941726,2.174,2512.4,2512.1,4.1890925]
[1751311942122,1.0318,2512.6,2512.1,0.2084]
[1751311942328,0.8334,2512.6,2512.2,4.17897479]
[1751311942523,0.01,2512.6,2512.5,3.9800995]
[1751311942728,0.01,2512.6,2512.4,4.17858628]
[1751311943275,0.01,2512.6,2512.5,3.9800995]
[1751311943767,0.01,2512.6,2512.5,4.4647995]
[1751311944462,0.01,2512.6,2512.5,14.4647995]
[1751311944678,0.01,2512.6,2512.5,17.36062008]
[1751311946768,0.01,2512.6,2512.5,17.91062008]
[1751311946944,0.01,2512.9,2512.8,3.97962432]
[1751311947288,0.01,2512.9,2512.8,32.12909355]
[1751311947443,0.01,2512.9,2512.8,33.29418084]
[1751311947752,0.01,2512.9,2512.8,35.09466192]
[1751311948078,0.01,2512.9,2512.8,4.46432432]
[1751311948351,0.01,2512.9,2512.8,14.46432432]
[1751311948692,0.01,2512.9,2512.8,15.01432432]
[1751311953701,0.01,2512.9,2512.8,21.81232432]
[1751311956571,0.01,2513.2,2513.1,5.01384925]
[1751311956772,0.01,2513.2,2513.1,34.57295]
[1751311957573,0.02,2513.5,2513.4,3.9786743]
[1751311957927,0.01,2513.8,2513.7,3.97819946]
[1751311958070,0.01,2513.8,2513.7,22.67166869]
[1751311958271,0.01,2513.8,2513.7,33.07187509]
[1751311958472,0.01,2513.8,2513.7,36.08934271]
[1751311959475,0.01,2513.8,2513.7,35.88753631]
[1751311959675,0.01,2513.8,2513.7,10.97059946]
[1751311959877,0.01,2513.8,2513.7,0.1984]
[1751311960693,0.01,2513.8,2513.7,10.96959946]
[1751311963484,0.01,2513.8,2513.7,20.96959946]
[1751311963689,0.01,2513.8,2513.7,31.83336869]
[1751311963878,0.01,2513.8,2513.7,35.46301067]
[1751311964513,0.01,2513.8,2513.7,36.01301067]
[1751311964878,0.01,2514.0,2513.9,4.52788297]
[1751311965103,0.01,2514.3,2514.2,3.97740832]
[1751311965274,0.01,2514.3,2514.2,11.25210832]
[1751311965475,0.01,2514.3,2514.2,12.73766548]
[1751311965825,3.9751979,2515.6,2515.1,3.97588958]
[1751311965983,3.97525741,2515.6,2515.2,6.79]
[1751311966184,3.97525741,2515.6,2515.4,0.1984]
[1751311966608,4.75805239,2515.7,2515.4,0.1984]
[1751311966811,0.783,2515.7,2515.4,10.96391085]
[1751311967530,0.01,2515.8,2515.4,25.00648219]
[1751311967732,0.01,2515.8,2515.4,35.00648219]
[1751311967930,0.01,2515.8,2515.7,13.97503676]
[1751311968308,0.01,2515.8,2515.7,20.96143676]
[1751311968709,0.01,2515.8,2515.7,21.96227663]
[1751311969336,0.01,2515.8,2515.7,21.96027663]
[1751311969728,0.01,2515.8,2515.7,10.1984]
[1751311969920,0.01,2515.8,2515.7,6.9844]
[1751311970515,0.01,2515.8,2515.7,10.95943676]
[1751311971532,0.01,2515.8,2515.7,6.9844]
[1751311971733,0.01,2515.8,2515.7,10.95943676]
[1751311973300,0.01,2515.8,2515.7,13.53927427]
[1751311974448,0.01,2515.8,2515.7,6.9824]
[1751311974619,0.01,2515.8,2515.7,10.95643676]
[1751311974819,0.01,2515.8,2515.7,0.1984]
[1751311975024,0.01,2515.8,2515.7,6.9814]
[1751311975623,3.98487876,2515.8,2515.7,0.1984]
[1751311975811,3.98487876,2515.8,2515.1,3.97597892]
[1751311975812,1.23688788,2515.8,2515.1,3.97597892]
[1751311976012,3.97514617,2515.7,2515.6,0.1984]
[1751311976336,1.0268,2515.7,2515.3,6.782]
[1751311976532,3.97565124,2515.4,2515.3,6.782]
[1751311977043,4.7648904,2515.4,2515.2,6.9794]
[1751311977342,0.7893,2515.4,2515.2,6.9794]
[1751311977544,3.9756689,2515.3,2515.2,6.9794]
[1751311978055,3.9756689,2515.3,2515.2,0.1984]
[1751311979732,4.76488422,2515.4,2515.2,0.1984]
[1751311980260,4.76491055,2515.4,2515.2,0.1984]
[1751311980454,4.93290734,2515.7,2515.2,0.89634]
[1751311980658,3.97527491,2515.6,2515.2,0.89634]
[1751311980953,3.97542528,2515.5,2515.2,0.69794]
[1751311981168,3.9755149,2515.4,2515.1,6.781]
[1751311981369,3.97520356,2515.6,2515.1,6.781]
[1751311981370,3.97542703,2515.5,2515.1,6.781]
[1751311981568,3.97542703,2515.5,2515.4,0.1984]
[1751311982194,3.97528706,2515.6,2515.4,0.1984]
[1751311982337,3.97535281,2515.5,2515.4,0.1984]
[1751311982661,3.9759165,2515.2,2514.7,3.97653608]
[1751311982834,3.97577017,2515.3,2514.8,10.75642444]
[1751311983039,3.97577017,2515.3,2515.2,0.1984]
[1751311983566,3.9761721,2515.0,2514.5,0.4847]
[1751311983765,3.97564718,2515.4,2514.0,1.15815367]
[1751311983766,3.97682557,2514.6,2514.2,0.4847]
[1751311984070,3.9768647,2514.6,2514.5,0.1984]
[1751311984441,0.8327,2514.7,2514.5,0.1984]
[1751311984859,0.8327,2514.7,2514.6,0.1984]
[1751311985250,3.97630877,2514.9,2514.6,0.1984]
[1751311985437,4.80896128,2515.0,2514.6,0.1984]
[1751311985638,3.97630199,2514.9,2514.6,0.1984]
[1751311986060,0.8327,2515.0,2514.6,3.97670637]
[1751311986258,0.8327,2515.0,2514.8,0.1984]
[1751311986459,4.80896127,2515.0,2514.8,0.1984]
[1751311986771,3.97630124,2514.9,2514.8,0.1984]
[1751311987142,3.9758698,2515.2,2513.9,3.97788297]
[1751311987143,0.8145,2514.5,2513.9,3.97788297]
[1751311987342,0.8145,2514.5,2514.4,0.1984]
[1751311987343,4.79151293,2514.5,2514.4,0.1984]
[1751311987539,3.97668423,2514.7,2514.4,0.1984]
[1751311987849,0.7869,2514.8,2514.6,0.1984]
[1751311988054,4.7634427,2514.8,2514.6,0.1984]
[1751311988248,0.7869,2514.8,2514.6,0.1984]
[1751311988571,3.97661748,2514.7,2514.6,0.1984]
[1751311989263,0.7869,2514.8,2514.6,0.1984]
[1751311989775,4.76342595,2514.8,2514.6,0.1984]
[1751311989972,0.8094,2514.6,2513.7,1.15815367]
[1751311990177,3.97746544,2514.2,2513.6,7.2627]
[1751311990472,0.8094,2514.6,2513.8,3.97803676]
[1751311990473,3.97733115,2514.3,2513.8,3.97803676]
[1751311990678,0.8094,2514.6,2513.7,8.03794141]
[1751311990850,0.8329,2514.8,2514.4,3.97695205]
[1751311991056,4.80936203,2514.8,2514.4,10.75408321]
[1751311991248,0.8329,2514.8,2514.4,10.75404126]
[1751311991442,0.8329,2515.0,2514.4,10.75407802]
[1751311991647,4.80905517,2515.0,2514.5,3.97693378]
[1751311991871,4.80905517,2515.0,2514.4,10.75404207]
[1751311992071,0.7596,2515.3,2514.5,1.52156827]
[1751311992274,0.7596,2515.3,2514.6,3.97663773]
[1751311992484,4.73535762,2515.3,2514.8,3.97633405]
[1751311992686,4.73535762,2515.3,2514.8,10.75333405]
[1751311993405,0.7596,2515.3,2514.8,6.777]
[1751311993758,4.73527863,2515.3,2514.8,10.75336947]
[1751311994461,4.73533777,2515.3,2514.8,6.777]
[1751311994651,1.23313378,2515.3,2514.8,6.777]
[1751311994851,4.73528907,2515.3,2514.8,6.777]
[1751311995057,4.73528907,2515.3,2514.8,10.75337456]
[1751311995377,3.97609334,2515.1,2514.7,6.776]
[1751311995679,3.97605632,2515.1,2514.7,6.776]
[1751311995985,3.97591487,2515.2,2514.7,10.75259756]
[1751311996963,0.7596,2515.3,2514.7,6.776]
[1751311997171,3.97615013,2515.0,2514.7,6.776]
[1751311997374,3.97589519,2515.2,2514.7,10.75252527]
[1751311997891,3.97610368,2515.1,2514.7,6.776]
[1751311998094,3.97617144,2515.0,2514.7,6.776]
[1751311998464,3.97606636,2515.1,2514.7,6.776]
[1751311998660,3.97594185,2515.2,2514.7,10.75260043]
[1751311998966,4.73536128,2515.3,2514.8,3.97644483]
[1751311999177,0.7596,2515.3,2514.9,3.97614563]
[1751311999474,0.7596,2515.3,2515.0,3.97611814]
[1751311999668,0.7596,2515.3,2514.7,10.75249776]
[1751311999870,3.97600284,2515.1,2514.8,1.07524978]
[1751312000069,3.97600284,2515.1,2515.0,0.1984]
[1751312000610,4.73532171,2515.3,2515.0,0.1984]
[1751312000611,3.97587545,2515.2,2515.0,0.1984]
[1751312000916,3.97598505,2515.1,2515.0,0.1984]
[1751312001498,3.97665121,2514.7,2514.3,2.6357]
[1751312001696,3.97665121,2514.7,2514.6,6.774]
[1751312001997,3.97665121,2514.7,2514.6,6.9724]
[1751312002166,3.97654126,2514.8,2514.6,6.9724]
[1751312002367,3.97639257,2514.9,2514.6,6.9724]
[1751312002665,3.97661748,2514.7,2514.6,0.1984]
[1751312002867,3.97661748,2514.7,2514.2,6.773]
[1751312002868,3.97709807,2514.4,2514.2,6.773]
[1751312003069,3.97677563,2514.6,2514.5,0.1984]
[1751312003296,0.8213,2514.7,2514.3,0.1984]
[1751312003497,3.97709195,2514.4,2514.3,0.1984]
[1751312004092,3.97725096,2514.3,2513.8,10.4847]
[1751312004389,3.97725096,2514.3,2514.1,0.1984]
[1751312004974,0.1984,2514.6,2514.1,0.1984]
[1751312005179,3.97740832,2514.2,2514.1,0.1984]
[1751312005577,3.97731271,2514.3,2514.1,0.1984]
[1751312005886,3.97709187,2514.5,2514.1,0.1984]
[1751312006093,3.97709327,2514.4,2514.0,3.97771758]
[1751312006414,3.97709327,2514.4,2513.9,10.74980197]
[1751312006616,3.97709327,2514.4,2514.3,0.1984]
[1751312006777,3.97701501,2514.5,2514.3,0.1984]
[1751312007116,3.97709195,2514.4,2514.3,0.1984]
[1751312007812,4.99635816,2514.7,2514.0,6.772]
[1751312007813,3.97738548,2514.3,2514.0,6.772]
[1751312007994,0.1984,2514.6,2514.1,0.1984]
[1751312008189,3.97740832,2514.2,2514.1,0.1984]
[1751312008391,3.97732291,2514.3,2514.1,0.1984]
[1751312008601,3.9771795,2514.4,2514.1,0.1984]
[1751312008911,3.97709918,2514.4,2514.1,0.1984]
[1751312009488,3.97726755,2514.3,2514.1,0.1984]
[1751312009683,3.97740832,2514.2,2514.1,0.1984]
[1751312009885,3.97740832,2514.2,2513.6,0.4847]
[1751312009886,3.97795241,2513.9,2513.6,0.4847]
[1751312010089,4.80542709,2514.2,2513.8,0.1984]
[1751312010298,3.97788297,2513.9,2513.8,0.1984]
[1751312010517,4.73948297,2513.9,2513.8,0.1984]
[1751312012133,0.7696,2514.5,2513.8,4.17637375]
[1751312012335,3.9775826,2514.1,2513.8,7.43550738]
[1751312012614,3.97709195,2514.4,2513.5,3.97846319]
[1751312012817,3.9779614,2513.9,2513.8,0.1984]
[1751312013017,4.8062614,2513.9,2513.8,0.1984]